bitfinex/quotes_ETHUSD_20250328
["timestamp","ask_amount","ask_price","bid_price","bid_amount"]
[1743142492235,5.18173,1929.9,1929.6,4.60341098]
[1743142492438,5.18173,1929.9,1929.6,3.64958898]
[1743142492637,0.15425036,1929.8,1929.6,3.64958898]
[1743142493012,5.18173,1929.9,1929.6,3.64958898]
[1743142493218,5.18173,1929.9,1929.6,1.04102731]
[1743142493219,0.15425036,1929.7,1929.6,1.04102731]
[1743142493410,5.1819,1929.8,1929.6,1.04102731]
[1743142493612,5.18165,1929.9,1929.6,1.04102731]
[1743142493811,0.15425036,1929.7,1929.6,1.74434706]
[1743142494013,5.17944,1930.8,1929.7,0.8321]
[1743142494221,5.17973,1930.6,1930.0,2.55674272]
[1743142494457,10.51396036,1930.6,1930.1,8.56966272]
[1743142494739,5.33398036,1930.6,1930.2,5.1808]
[1743142495043,0.15425036,1930.6,1930.4,5.18011]
[1743142495260,0.15425036,1930.6,1930.4,37.6866498]
[1743142495540,0.15677144,1930.5,1930.4,29.898]
[1743142495713,5.18,1930.5,1930.4,29.898]
[1743142495912,5.33677144,1930.5,1930.4,29.898]
[1743142496114,0.15677144,1930.5,1930.4,29.898]
[1743142496530,5.17907,1930.9,1930.4,39.45680554]
[1743142496735,0.16104488,1930.8,1930.4,42.77070318]
[1743142496935,5.17904,1930.9,1930.4,42.77070318]
[1743142497142,0.16104488,1930.8,1930.5,0.05179569]
[1743142497343,0.16104488,1930.8,1930.4,47.95077318]
[1743142497344,5.17931,1930.8,1930.4,39.45673554]
[1743142497553,0.16104488,1930.7,1930.5,0.05179462]
[1743142497736,5.17906,1930.9,1930.5,0.05179462]
[1743142497914,0.16104488,1930.8,1930.5,0.05179462]
[1743142498258,5.17906,1930.9,1930.5,0.05179462]
[1743142498481,0.16104488,1930.7,1930.5,0.05179462]
[1743142498645,5.17892,1931.0,1930.5,9.18248264]
[1743142498835,0.16104488,1930.6,1930.5,5.23163462]
[1743142499040,5.17884,1931.0,1930.6,5.17971]
[1743142499481,5.17884,1931.0,1930.6,5.23150086]
[1743142499971,5.17909,1930.9,1930.4,39.45676554]
[1743142500145,0.517909,1930.8,1930.5,0.05179462]
[1743142500347,11.16031,1930.9,1930.5,0.05179462]
[1743142500680,5.98114,1930.9,1930.5,0.05179462]
[1743142501046,5.17931,1930.8,1930.4,31.71979282]
[1743142501250,5.17931,1930.8,1930.5,0.05179464]
[1743142501934,5.17931,1930.8,1930.4,36.89996282]
[1743142502356,5.17931,1930.8,1930.4,31.71979282]
[1743142502567,5.17957,1930.7,1930.4,31.71979282]
[1743142502963,0.8021,1930.9,1930.4,36.89990282]
[1743142503181,5.98115,1930.9,1930.4,36.89990282]
[1743142503393,5.98115,1930.9,1930.4,36.89985282]
[1743142503588,11.16029,1930.9,1930.4,36.89994282]
[1743142503892,5.17934,1930.8,1930.4,31.71979282]
[1743142504261,10.35877,1930.8,1930.4,31.71979282]
[1743142504463,5.1795,1930.7,1930.4,31.71979282]
[1743142504792,5.18,1930.5,1930.4,29.898]
[1743142504942,2.72030668,1930.6,1930.2,0.8264]
[1743142505148,5.18134,1930.0,1929.9,29.888]
[1743142505774,5.34457546,1930.0,1929.9,29.888]
[1743142507880,5.19457546,1930.0,1929.9,29.888]
[1743142508589,5.19457546,1930.0,1929.2,30.6609]
[1743142508590,4.93268,1929.5,1929.2,30.6609]
[1743142508794,5.1831,1929.4,1929.2,30.6609]
[1743142508999,5.1831,1929.4,1929.2,29.89]
[1743142509000,5.18322,1929.3,1929.2,29.89]
[1743142509295,5.33779937,1929.3,1929.2,29.89]
[1743142509593,5.18322,1929.3,1929.2,29.89]
[1743142509898,0.14164295,1929.3,1929.2,33.6395]
[1743142510353,0.1392856,1929.3,1929.2,33.6395]
[1743142510694,4.93245,1929.6,1929.2,33.6395]
[1743142510854,0.1392856,1929.3,1929.2,33.6395]
[1743142511051,0.1392856,1929.3,1929.2,34.69058594]
[1743142511264,4.93245,1929.6,1929.2,34.69058594]
[1743142511553,5.183,1929.4,1929.2,34.69058594]
[1743142511763,5.3221956,1929.5,1929.2,34.69058594]
[1743142511969,5.18248,1929.6,1929.3,1.88536266]
[1743142512199,0.1392856,1929.4,1929.3,1.88536266]
[1743142512652,5.18248,1929.6,1929.3,1.88536266]
[1743142512849,0.1392856,1929.4,1929.3,1.88536266]
[1743142513060,10.36505,1929.6,1929.3,1.88536266]
[1743142513378,5.18272,1929.5,1929.2,31.70158594]
[1743142513600,5.3220056,1929.5,1929.2,31.70158594]
[1743142514198,0.1392856,1929.5,1929.4,7.73969272]
[1743142514396,5.18173,1929.9,1929.4,5.55674272]
[1743142514601,5.18228,1929.7,1929.3,0.7802]
[1743142515519,5.18246,1929.6,1929.3,0.7802]
[1743142515811,5.18246,1929.6,1929.2,30.94108594]
[1743142515812,5.18296,1929.4,1929.2,30.94108594]
[1743142516474,5.18322,1929.3,1929.2,30.94108594]
[1743142516675,9.55578072,1929.3,1929.2,29.89]
[1743142516873,6.219838,1929.3,1929.2,29.89]
[1743142517102,1.1759036,1929.3,1929.2,29.89]
[1743142517315,0.1392856,1929.3,1929.2,29.89]
[1743142517502,5.18316,1929.4,1929.2,29.89]
[1743142517702,0.1392856,1929.3,1929.2,29.89]
[1743142518088,5.18322,1929.3,1929.2,29.89]
[1743142518281,0.1392856,1929.3,1929.2,29.89]
[1743142518503,10.36616,1929.4,1929.2,29.89]
[1743142518708,5.3225056,1929.3,1929.2,29.89]
[1743142520103,0.1392856,1929.3,1929.2,29.89]
[1743142520424,6.01218,1929.8,1929.2,33.6595]
[1743142520607,0.1392856,1929.3,1929.2,30.6705]
[1743142520916,10.36518,1929.6,1929.2,30.6705]
[1743142521131,0.1392856,1929.3,1929.2,30.6705]
[1743142521439,5.18255,1929.6,1929.2,30.6705]
[1743142521734,7.73836272,1929.9,1929.4,5.18283]
[1743142521735,5.18162,1929.9,1929.4,5.18283]
[1743142521892,5.18162,1929.9,1929.5,0.518283]
[1743142522092,5.18192,1929.8,1929.5,0.518283]
[1743142522739,5.18287,1929.5,1929.2,30.6705]
[1743142522900,10.36574,1929.5,1929.2,30.6705]
[1743142523540,5.18269,1929.5,1929.2,30.6705]
[1743142523910,10.36563,1929.5,1929.2,30.6705]
[1743142524137,10.36563,1929.5,1929.3,0.7997]
[1743142524299,5.18172,1929.9,1929.5,5.18265]
[1743142524501,5.18172,1929.9,1929.4,10.41736828]
[1743142524806,5.18188,1929.8,1929.3,8.53960272]
[1743142524993,5.18188,1929.8,1929.4,6.03690027]
[1743142525196,10.36359,1929.9,1929.4,6.03690027]
[1743142525632,5.1819,1929.8,1929.4,6.03690027]
[1743142525834,10.36403,1929.8,1929.4,0.85396027]
[1743142526033,5.1819,1929.8,1929.4,0.85396027]
[1743142526243,5.1819,1929.8,1929.4,6.03676027]
[1743142526410,5.1819,1929.8,1929.5,0.60367603]
[1743142526610,10.36401,1929.8,1929.5,0.60367603]
[1743142526913,5.18134,1930.0,1929.3,1.19570747]
[1743142527236,5.18248,1929.6,1929.3,1.19570747]
[1743142527437,5.18214,1929.8,1929.4,1.02445355]
[1743142527438,5.18219,1929.7,1929.4,1.02445355]
[1743142527641,10.36414,1929.8,1929.4,1.02445355]
[1743142527938,5.18226,1929.7,1929.4,1.02445355]
[1743142528303,5.18226,1929.7,1929.5,29.899]
[1743142529237,5.182,1929.8,1929.5,29.899]
[1743142529762,10.36412,1929.8,1929.5,29.899]
[1743142530560,5.182,1929.8,1929.5,29.899]
[1743142530723,5.18242,1929.6,1929.5,29.899]
[1743142531874,5.18215,1929.7,1929.5,29.899]
[1743142532059,10.36453,1929.7,1929.5,29.899]
[1743142532277,5.18215,1929.7,1929.5,29.899]
[1743142532643,5.18242,1929.6,1929.5,29.899]
[1743142534561,5.3234052,1929.6,1929.5,29.899]
[1743142534760,0.1409852,1929.6,1929.5,29.899]
[1743142534960,5.18189,1929.8,1929.5,29.899]
[1743142535160,0.1409852,1929.7,1929.5,29.899]
[1743142535768,10.36466,1929.7,1929.5,29.899]
[1743142535979,5.18102,1930.2,1929.7,5.18205]
[1743142536188,10.3624,1930.1,1929.6,6.03585218]
[1743142536401,10.3624,1930.1,1929.6,11.16634]
[1743142536602,5.18078,1930.3,1929.7,6.298704]
[1743142536798,10.36154,1930.3,1929.8,5.98355]
[1743142536950,5.18043,1930.4,1930.0,5.18123]
[1743142537156,5.17991,1930.6,1930.1,5.98273]
[1743142537389,6.57669095,1930.6,1930.2,5.1808]
[1743142537699,5.18011,1930.5,1930.1,5.98281]
[1743142538057,10.35986,1930.6,1930.2,1.01290003]
[1743142538480,10.35984,1930.6,1930.2,6.19350003]
[1743142538802,10.35979,1930.6,1930.2,6.19350003]
[1743142539002,5.17989,1930.6,1930.2,6.19350003]
[1743142539161,5.17989,1930.6,1930.2,6.87954869]
[1743142539974,5.17937,1930.8,1930.3,0.87690332]
[1743142540303,10.35881,1930.8,1930.3,11.18588]
[1743142540459,5.17948,1930.7,1930.3,6.00548]
[1743142540760,5.17948,1930.7,1930.4,0.600548]
[1743142540961,5.17973,1930.6,1930.5,29.895]
[1743142542163,5.93473,1930.6,1930.5,29.895]
[1743142543677,5.17973,1930.6,1930.5,29.895]
[1743142544927,6.215651,1930.6,1930.5,29.895]
[1743142545927,6.215651,1930.6,1930.1,0.8251]
[1743142545928,5.18066,1930.3,1930.1,0.8251]
[1743142546719,10.36144,1930.3,1930.1,0.8251]
[1743142547220,5.18081,1930.2,1930.1,0.8251]
[1743142548083,10.36146,1930.3,1930.1,0.8251]
[1743142548283,10.36137,1930.3,1930.1,0.8251]
[1743142548483,5.18081,1930.2,1930.1,0.8251]
[1743142549830,5.31935755,1930.2,1930.0,30.92331066]
[1743142550131,5.31935755,1930.2,1930.0,29.89]
[1743142550132,5.18107,1930.1,1930.0,29.89]
[1743142550433,5.31753396,1930.1,1930.0,29.89]
[1743142550948,8.90402058,1930.1,1930.0,29.89]
[1743142551694,9.68252058,1930.1,1930.0,29.89]
[1743142551898,5.18253,1929.6,1929.4,1.01795008]
[1743142552093,5.18152,1930.0,1929.3,30.683]
[1743142552094,5.18268,1929.5,1929.3,30.683]
[1743142552297,5.18295,1929.4,1929.3,32.9583]
[1743142552533,5.18295,1929.4,1929.3,29.89]
[1743142552829,5.31639703,1929.4,1929.3,29.89]
[1743142553219,0.13344703,1929.4,1929.3,29.89]
[1743142555337,5.31639703,1929.4,1929.3,29.89]
[1743142556443,5.31639703,1929.4,1929.3,44.39]
[1743142556601,0.13344703,1929.4,1929.3,48.829]
[1743142556802,5.18188,1929.8,1929.4,0.7861]
[1743142557138,0.12647899,1929.7,1929.4,5.96905]
[1743142557633,5.30865899,1929.7,1929.5,14.5]
[1743142558027,5.18242,1929.6,1929.5,14.5]
[1743142558702,5.30889899,1929.6,1929.5,14.5]
[1743142559410,0.12647899,1929.6,1929.5,14.5]
[1743142559910,5.18242,1929.6,1929.5,14.5]
[1743142560113,5.30889899,1929.6,1929.5,14.5]
[1743142560705,5.30889899,1929.6,1929.3,29.89]
[1743142560706,5.18295,1929.4,1929.3,29.89]
[1743142560905,8.47916576,1929.4,1929.3,29.89]
[1743142561135,8.60663265,1929.4,1929.3,29.89]
[1743142561338,5.18475,1928.8,1928.6,29.897]
[1743142561738,5.31073518,1928.7,1928.6,29.897]
[1743142563653,5.18515,1928.6,1928.4,1.8530218]
[1743142563855,5.30817019,1928.5,1928.4,30.6911]
[1743142564223,5.30817019,1928.5,1928.4,44.401]
[1743142564428,5.18537,1928.5,1928.4,44.401]
[1743142564637,5.30817019,1928.5,1928.4,44.401]
[1743142565222,5.18591,1928.3,1928.1,0.02]
[1743142565447,8.77342985,1928.2,1928.1,0.02]
[1743142565643,17.42380461,1928.2,1928.1,0.02]
[1743142565843,17.97380461,1928.2,1928.1,0.02]
[1743142566069,19.52567607,1928.2,1928.1,0.02]
[1743142566349,20.35387607,1928.2,1928.1,0.02]
[1743142567749,5.18833,1927.4,1927.3,29.901]
[1743142568142,5.18833,1927.4,1927.3,44.401]
[1743142568349,5.30019769,1927.4,1927.3,44.401]
[1743142571565,7.17693146,1927.4,1927.3,44.401]
[1743142571754,10.00008131,1927.4,1927.3,44.401]
[1743142571956,10.00008131,1927.4,1927.3,29.901]
[1743142577150,7.17693146,1927.4,1927.3,29.901]
[1743142577754,7.17693146,1927.4,1927.3,44.401]
[1743142578603,5.18941,1927.0,1926.9,0.7892]
[1743142578942,5.29325066,1927.0,1926.9,0.7892]
[1743142579246,5.29325066,1927.0,1926.9,15.2892]
[1743142580565,0.10384066,1927.0,1926.9,15.2892]
[1743142580771,5.29325066,1927.0,1926.9,15.2892]
[1743142586707,0.10384066,1927.0,1926.9,20.47888]
[1743142586999,5.18839,1927.4,1927.0,6.01656]
[1743142587153,5.18839,1927.4,1927.1,2.604821]
[1743142587352,10.37694,1927.4,1927.0,8.56949486]
[1743142587596,10.37694,1927.4,1927.0,9.94541235]
[1743142587767,10.37694,1927.4,1927.1,14.5]
[1743142587971,5.18798,1927.6,1927.1,19.68896]
[1743142588265,5.18741,1927.8,1927.4,2.55293486]
[1743142588454,10.37488,1927.8,1927.4,7.74125486]
[1743142588656,5.18774,1927.7,1927.4,1.37070349]
[1743142588861,5.1882,1927.5,1927.3,0.7773]
[1743142589371,5.18817,1927.5,1927.4,14.5]
[1743142590683,5.18833,1927.4,1927.1,1.85592584]
[1743142590905,5.18861,1927.3,1927.1,1.85592584]
[1743142591799,5.18833,1927.4,1927.2,14.5]
[1743142592282,5.18807,1927.5,1927.2,17.05293486]
[1743142592856,10.37637,1927.5,1927.2,17.05293486]
[1743142593058,10.37637,1927.5,1927.2,46.98693486]
[1743142593274,10.37633,1927.5,1927.2,46.98693486]
[1743142593475,5.18835,1927.4,1927.2,46.98693486]
[1743142593762,5.1886,1927.3,1927.2,44.434]
[1743142594657,5.18835,1927.4,1927.2,44.434]
[1743142594887,5.18813,1927.5,1927.2,44.434]
[1743142595073,5.18833,1927.4,1927.2,44.434]
[1743142595991,10.37689,1927.4,1927.2,44.434]
[1743142596395,5.1886,1927.3,1927.2,44.434]
[1743142596558,5.1886,1927.3,1927.2,29.934]
[1743142602467,5.18932,1927.1,1926.8,2.55293486]
[1743142602889,10.37859,1927.1,1926.8,2.55293486]
[1743142603193,5.18927,1927.1,1926.8,2.55293486]
[1743142603367,5.18927,1927.1,1926.8,6.40382835]
[1743142603801,5.18926,1927.1,1926.9,14.5]
[1743142605298,10.37645,1927.5,1926.9,14.5]
[1743142605299,5.18814,1927.5,1927.0,3.35043486]
[1743142605498,5.18814,1927.5,1927.2,2.55293486]
[1743142605679,6.01,1927.7,1927.0,3.35043486]
[1743142605880,5.18904,1927.2,1927.1,14.5]
[1743142607300,5.18946,1927.0,1926.9,29.936]
[1743142607478,5.18904,1927.2,1926.9,29.936]
[1743142607479,5.1892,1927.1,1926.9,29.936]
[1743142608175,5.18941,1927.0,1926.9,29.936]
[1743142608397,10.37858,1927.1,1926.9,29.936]
[1743142608567,10.37851,1927.1,1926.9,29.936]
[1743142608973,5.1892,1927.1,1926.9,29.936]
[1743142609804,5.18941,1927.0,1926.9,29.936]
[1743142610500,5.18941,1927.0,1926.9,29.906]
[1743142610803,5.77284846,1927.0,1926.9,29.906]
[1743142612098,5.1897,1926.9,1926.7,2.55293486]
[1743142612298,5.18995,1926.8,1926.7,2.55293486]
[1743142612503,5.1897,1926.9,1926.7,2.55293486]
[1743142613110,5.18915,1927.1,1926.8,2.55293486]
[1743142613275,10.37843,1927.1,1926.9,2.55293486]
[1743142613587,5.18941,1927.0,1926.9,0.8053]
[1743142613787,5.18941,1927.0,1926.7,3.35183486]
[1743142614000,5.18968,1926.9,1926.7,3.35183486]
[1743142616106,10.37897,1927.0,1926.8,2.55293486]
[1743142616270,5.18968,1926.9,1926.8,2.55293486]
[1743142616977,5.18968,1926.9,1926.8,32.49193486]
[1743142619798,5.18968,1926.9,1926.8,29.939]
[1743142621635,9.60622586,1926.9,1926.8,29.939]
[1743142623328,7.74173486,1927.3,1926.9,0.8157]
[1743142623529,0.7904,1927.7,1927.0,7.74214486]
[1743142623530,5.18779,1927.6,1927.0,7.74214486]
[1743142623725,5.18845,1927.4,1927.1,0.8157]
[1743142623930,5.18845,1927.4,1927.1,2.05204414]
[1743142624131,5.18879,1927.3,1927.1,0.8157]
[1743142624534,9.68999041,1927.3,1927.1,0.8157]
[1743142624828,4.50114041,1927.3,1927.1,0.8157]
[1743142625334,5.18808,1927.5,1927.1,8.60964259]
[1743142625826,5.18851,1927.4,1927.1,3.36863486]
[1743142626030,5.18851,1927.4,1927.1,3.81094208]
[1743142626243,5.18861,1927.3,1927.1,1.25800722]
[1743142626408,5.18897,1927.2,1926.9,0.796]
[1743142626607,5.18867,1927.3,1926.9,5.98565]
[1743142626808,5.18867,1927.3,1926.9,0.796]
[1743142627223,5.189,1927.2,1926.9,2.20734438]
[1743142627422,5.189,1927.2,1926.9,1.81571221]
[1743142627731,10.37736,1927.3,1926.9,7.00532221]
[1743142628334,10.37733,1927.3,1926.9,7.00532221]
[1743142628718,5.18893,1927.2,1926.9,0.796]
[1743142629706,5.18894,1927.2,1926.9,0.796]
[1743142630010,5.18862,1927.3,1926.9,1.23806386]
[1743142630215,5.18862,1927.3,1926.9,6.42759386]
[1743142630434,5.18862,1927.3,1926.9,6.42773386]
[1743142630728,10.37745,1927.3,1926.9,6.42773386]
[1743142630936,5.18887,1927.2,1926.9,6.37584386]
[1743142631109,5.18887,1927.2,1926.9,1.18617386]
[1743142633509,5.1892,1927.1,1926.9,1.18617386]
[1743142633917,5.1892,1927.1,1926.8,29.939]
[1743142633918,5.18941,1927.0,1926.8,29.939]
[1743142634213,6.01568,1926.9,1926.8,29.939]
[1743142634451,7.136189,1926.9,1926.8,29.939]
[1743142634655,9.68912386,1926.9,1926.8,29.939]
[1743142635727,0.8091,1926.6,1926.2,0.8282]
[1743142635935,5.19129,1926.3,1926.1,30.38056532]
[1743142636262,5.19101,1926.5,1926.1,31.40107853]
[1743142636439,0.8091,1926.6,1926.1,34.74311906]
[1743142636738,5.1912,1926.4,1926.1,34.74311906]
[1743142637542,5.19076,1926.5,1926.2,0.82921233]
[1743142637746,5.19041,1926.7,1926.2,0.82921233]
[1743142637747,5.19051,1926.6,1926.2,3.33023486]
[1743142637944,5.19051,1926.6,1926.3,0.33302349]
[1743142638151,10.38178,1926.5,1926.2,0.7773]
[1743142638320,5.19079,1926.5,1926.2,0.82920801]
[1743142638646,5.19104,1926.4,1926.2,0.82920801]
[1743142638962,5.19129,1926.3,1926.2,0.7773]
[1743142639616,5.1911,1926.4,1926.2,0.7773]
[1743142639817,10.38235,1926.4,1926.2,0.7773]
[1743142640043,5.1911,1926.4,1926.2,0.7773]
[1743142640434,5.19129,1926.3,1926.2,0.7773]
[1743142641051,5.19156,1926.2,1926.1,29.987]
[1743142642162,5.19129,1926.3,1926.1,29.987]
[1743142642461,5.19129,1926.3,1926.2,0.811]
[1743142642959,5.19156,1926.2,1926.1,29.987]
[1743142644892,5.19129,1926.3,1926.1,29.987]
[1743142645296,5.1911,1926.4,1926.1,32.53993486]
[1743142645594,5.19132,1926.3,1926.1,29.987]
[1743142645801,5.19156,1926.2,1926.1,29.987]
[1743142646301,5.19132,1926.3,1926.1,29.987]
[1743142646599,5.19156,1926.2,1926.1,29.987]
[1743142648977,7.74449486,1926.2,1926.1,29.987]
[1743142649287,9.11598635,1926.2,1926.1,29.987]
[1743142650279,6.56305149,1926.2,1926.1,29.987]
[1743142651298,10.48908635,1926.2,1926.1,29.987]
[1743142652593,7.38615149,1926.2,1926.1,29.987]
[1743142652767,6.01466,1926.2,1926.1,29.987]
[1743142654236,5.19132,1926.3,1926.1,0.801]
[1743142654441,5.19142,1926.3,1926.1,3.35393486]
[1743142654821,10.38236,1926.4,1926.1,3.35393486]
[1743142655195,5.19132,1926.3,1926.1,3.35393486]
[1743142655434,5.19132,1926.3,1926.1,3.68932835]
[1743142655838,5.19156,1926.2,1926.1,1.13639349]
[1743142656130,5.19156,1926.2,1926.1,0.801]
[1743142656338,5.19156,1926.2,1926.1,1.18903256]
[1743142656538,5.19132,1926.3,1926.1,1.18903256]
[1743142656913,5.19103,1926.4,1926.1,1.18903256]
[1743142657113,8.51328486,1926.7,1926.1,0.801]
[1743142657114,5.19156,1926.2,1926.1,0.801]
[1743142657813,5.19156,1926.2,1926.1,0.05]
[1743142658937,5.19156,1926.2,1926.1,30.001]
[1743142663718,5.19156,1926.2,1926.1,0.05]
[1743142664764,6.01496,1926.2,1926.1,0.05]
[1743142664922,7.39088149,1926.2,1926.1,0.05]
[1743142668977,6.56748149,1926.2,1926.1,0.05]
[1743142669182,5.19156,1926.2,1926.1,0.05]
[1743142676533,5.19156,1926.2,1926.1,14.55]
[1743142681936,5.19156,1926.2,1926.1,0.05]
[1743142682150,3.0,1926.7,1926.3,0.7842]
[1743142682151,5.19033,1926.7,1926.3,0.7842]
[1743142682351,6.01,1927.3,1926.6,8.52749486]
[1743142682352,5.18934,1927.1,1926.6,8.52749486]
[1743142682552,5.19011,1926.8,1926.6,15.2842]
[1743142683440,10.38029,1926.8,1926.6,15.2842]
[1743142683775,5.18974,1926.9,1926.6,15.2842]
[1743142684159,10.37967,1926.9,1926.6,15.2842]
[1743142684467,5.18942,1927.0,1926.6,17.16932094]
[1743142684642,5.18942,1927.0,1926.6,54.8656158]
[1743142685165,5.18942,1927.0,1926.6,49.6752558]
[1743142685339,10.37906,1927.0,1926.6,49.6752558]
[1743142686058,5.18975,1926.9,1926.6,49.6752558]
[1743142686242,5.18975,1926.9,1926.7,2.98924172]
[1743142687060,5.18975,1926.9,1926.7,17.48924172]
[1743142687451,5.18995,1926.8,1926.7,17.48924172]
[1743142687973,5.18995,1926.8,1926.7,2.98924172]
[1743142688671,5.19022,1926.7,1926.6,29.953]
[1743142689169,5.18995,1926.8,1926.6,29.953]
[1743142690537,5.19022,1926.7,1926.6,29.953]
[1743142690744,8.51825486,1926.7,1926.6,29.953]
[1743142693993,5.19022,1926.7,1926.6,29.953]
[1743142694192,10.38135,1926.6,1926.3,0.7565]
[1743142694399,5.19063,1926.6,1926.3,0.7565]
[1743142694608,5.1908,1926.5,1926.3,0.7565]
[1743142694783,5.19063,1926.6,1926.4,14.5]
[1743142696537,10.38127,1926.6,1926.4,14.5]
[1743142696817,5.19063,1926.6,1926.4,14.5]
[1743142697817,10.38127,1926.6,1926.4,14.5]
[1743142698514,5.19028,1926.7,1926.4,14.5]
[1743142698719,5.19028,1926.7,1926.5,1.4457978]
[1743142698720,5.19023,1926.7,1926.5,1.4457978]
[1743142699108,10.38067,1926.7,1926.3,8.50061486]
[1743142699340,5.19051,1926.6,1926.4,14.5]
[1743142701634,5.19076,1926.5,1926.4,14.5]
[1743142701799,5.19102,1926.4,1926.3,0.7565]
[1743142702315,5.19102,1926.4,1926.3,15.2565]
[1743142702834,5.19076,1926.5,1926.3,15.2565]
[1743142703031,5.19049,1926.6,1926.3,15.2565]
[1743142704236,5.19017,1926.8,1926.3,15.2565]
[1743142704537,5.19017,1926.8,1926.4,5.19098]
[1743142704740,5.19017,1926.8,1926.5,0.81040006]
[1743142705037,5.18961,1927.0,1926.5,8.94912]
[1743142705237,5.18961,1927.0,1926.6,19.69047]
[1743142705436,5.18954,1927.0,1926.8,0.7585]
[1743142706011,5.18954,1927.0,1926.9,14.5]
[1743142709417,5.18984,1926.9,1926.7,29.944]
[1743142710043,10.37976,1926.9,1926.8,14.5]
[1743142710250,10.37966,1926.9,1926.7,29.944]
[1743142710552,5.18995,1926.8,1926.7,29.944]
[1743142710765,7.74288486,1926.8,1926.7,29.944]
[1743142710917,9.03615535,1926.8,1926.7,29.944]
[1743142711861,5.18995,1926.8,1926.7,29.944]
[1743142713450,5.19032,1926.7,1926.5,15.3078]
[1743142713653,5.19049,1926.6,1926.5,15.3078]
[1743142713966,5.19049,1926.6,1926.5,14.5]
[1743142714649,5.18995,1926.8,1926.5,14.5]
[1743142714847,5.19049,1926.6,1926.5,14.5]
[1743142715931,5.19076,1926.5,1926.4,29.944]
[1743142716659,5.19076,1926.5,1926.4,44.444]
[1743142720154,5.19049,1926.6,1926.4,45.2256]
[1743142720341,5.19019,1926.8,1926.4,35.91647]
[1743142720658,5.19049,1926.6,1926.4,30.7256]
[1743142720862,5.19049,1926.6,1926.5,14.5]
[1743142721358,5.19025,1926.7,1926.5,14.5]
[1743142721764,10.38069,1926.7,1926.5,14.5]
[1743142722464,5.19049,1926.6,1926.5,14.5]
[1743142722961,5.19025,1926.7,1926.5,14.5]
[1743142723755,5.18972,1926.9,1926.6,0.7568]
[1743142723930,5.18972,1926.9,1926.5,17.05293486]
[1743142723931,5.1892,1927.1,1926.8,0.7568]
[1743142724131,5.18942,1927.0,1926.8,0.7568]
[1743142724331,5.18942,1927.0,1926.9,14.5]
[1743142725770,5.18942,1927.0,1926.6,0.8288]
[1743142725771,2.55293486,1927.0,1926.6,0.8288]
[1743142725930,5.19059,1926.6,1926.4,30.7499]
[1743142726131,5.19076,1926.5,1926.4,30.7499]
[1743142726534,5.19076,1926.5,1926.4,29.944]
[1743142728671,5.19059,1926.6,1926.4,29.944]
[1743142728982,11.19834,1927.4,1926.6,5.19044]
[1743142728983,5.18937,1927.1,1926.6,5.19044]
[1743142729164,5.18892,1927.2,1926.9,0.8037]
[1743142729351,10.37797,1927.2,1926.9,0.85559075]
[1743142729557,10.37797,1927.2,1927.0,14.5]
[1743142729772,5.18892,1927.2,1927.0,14.5]
[1743142730146,0.7677,1927.4,1927.0,18.58330486]
[1743142730147,5.18852,1927.4,1927.0,18.58330486]
[1743142730462,0.7634,1927.6,1927.0,16.03037]
[1743142730463,5.18914,1927.1,1927.0,16.03037]
[1743142730666,6.01074,1927.1,1927.0,14.5]
[1743142730868,7.38599449,1927.1,1927.0,14.5]
[1743142731039,7.38599449,1927.1,1926.6,0.8262]
[1743142731238,5.18973,1926.9,1926.6,0.8262]
[1743142731660,5.18973,1926.9,1926.6,15.3262]
[1743142731856,0.8216,1927.1,1926.6,15.3262]
[1743142732045,5.19022,1926.7,1926.6,15.3262]
[1743142732833,5.19003,1926.8,1926.6,15.3262]
[1743142733537,5.18961,1927.0,1926.6,17.87913486]
[1743142733972,5.18961,1927.0,1926.7,0.05189619]
[1743142734170,10.37914,1927.0,1926.7,1.79310311]
[1743142734672,5.18972,1926.9,1926.7,1.79310311]
[1743142735249,5.18972,1926.9,1926.6,3.37913486]
[1743142735655,5.18972,1926.9,1926.7,0.05189659]
[1743142736279,5.18972,1926.9,1926.6,3.37913486]
[1743142736579,5.18883,1927.3,1926.8,8.49536486]
[1743142736750,5.18902,1927.2,1926.9,0.05189003]
[1743142736952,5.18915,1927.1,1926.8,4.67928201]
[1743142737164,5.18943,1927.0,1926.8,3.30553486]
[1743142737475,10.37854,1927.1,1926.8,3.30553486]
[1743142737787,5.18915,1927.1,1926.8,3.30553486]
[1743142737972,5.18893,1927.2,1926.8,8.49545486]
[1743142738148,5.18893,1927.2,1926.8,9.86402035]
[1743142738345,10.37805,1927.2,1926.8,9.86402035]
[1743142738545,5.18893,1927.2,1926.8,15.05376035]
[1743142738855,5.18893,1927.2,1926.9,0.05189007]
[1743142739063,5.18893,1927.2,1926.8,9.86384035]
[1743142739377,5.18893,1927.2,1926.9,0.98638404]
[1743142740277,5.18893,1927.2,1926.8,8.49527486]
[1743142740573,5.18915,1927.1,1926.8,3.30553486]
[1743142741948,5.18943,1927.0,1926.8,3.30553486]
[1743142742189,5.18915,1927.1,1926.6,36.27553486]
[1743142742190,5.18995,1926.8,1926.6,36.27553486]
[1743142742479,5.18995,1926.8,1926.6,33.27553486]
[1743142742683,5.18995,1926.8,1926.6,32.49493486]
[1743142742847,5.19022,1926.7,1926.6,29.942]
[1743142743656,8.49555486,1926.7,1926.6,29.942]
[1743142743851,5.94262,1926.7,1926.6,29.942]
[1743142744050,5.19022,1926.7,1926.6,29.942]
[1743142744255,6.00192,1926.7,1926.6,29.942]
[1743142744554,7.1730065,1926.7,1926.6,29.942]